[Event "December 19 Early 2023"]
[Site "https://www.chess.com"]
[Date "2023.12.19"]
[Round "6"]
[White "Khodabandeh, Milad"]
[Black "Ghevondyan, Arman"]
[Result "0-1"]
[Board "118"]
[TimeControl "180+1"]
[WhiteFideId "12538620"]
[BlackFideId "13312073"]
[WhiteElo "1846"]
[BlackElo "2176"]
[WhiteTeam "IRI"]
[BlackTeam "ARM"]
[WhiteClock "0:00:05"]
[BlackClock "0:00:52"]

1. e4 {[%clk 0:03:00]}  c5 {[%clk 0:02:59]} 2. Nf3 {[%clk 0:03:01]}  Nc6 {[%clk 0:02:58]} 3. d4 {[%clk 0:03:01]}  cxd4 {[%clk 0:02:57]} 4. Nxd4 {[%clk 0:03:02]}  g6 {[%clk 0:02:58]} 5. c4 {[%clk 0:03:01]}  Bg7 {[%clk 0:02:58]} 6. Be3 {[%clk 0:03:01]}  Nf6 {[%clk 0:02:58]} 7. Nc3 {[%clk 0:03:01]}  Ng4 {[%clk 0:02:55]} 8. Qxg4 {[%clk 0:03:00]}  Nxd4 {[%clk 0:02:55]} 9. Qd1 {[%clk 0:02:59]}  Ne6 {[%clk 0:02:55]} 10. Qd2 {[%clk 0:02:58]}  Qa5 {[%clk 0:02:50]} 11. Rc1 {[%clk 0:02:55]}  b6 {[%clk 0:02:48]} 12. Be2 {[%clk 0:02:53]}  Bxc3 {[%clk 0:02:48]} 13. Qxc3 {[%clk 0:02:50]}  Qxc3+ {[%clk 0:02:48]} 14. Rxc3 {[%clk 0:02:51]}  Bb7 {[%clk 0:02:49]} 15. f3 {[%clk 0:02:46]}  d6 {[%clk 0:02:48]} 16. Kd2 {[%clk 0:02:42]}  Rc8 {[%clk 0:02:30]} 17. Rhc1 {[%clk 0:02:41]}  O-O {[%clk 0:02:30]} 18. b4 {[%clk 0:02:36]}  Rc7 {[%clk 0:02:30]} 19. Kc2 {[%clk 0:02:24]}  Rfc8 {[%clk 0:02:29]} 20. Kb3 {[%clk 0:02:24]}  Ba6 {[%clk 0:02:25]} 21. a4 {[%clk 0:02:11]}  Kf8 {[%clk 0:02:18]} 22. f4 {[%clk 0:01:48]}  Bb7 {[%clk 0:02:06]} 23. f5 {[%clk 0:01:41]}  Nd8 {[%clk 0:02:05]} 24. Bg4 {[%clk 0:01:20]}  h5 {[%clk 0:02:01]} 25. Bh3 {[%clk 0:01:13]}  Rb8 {[%clk 0:01:55]} 26. Bh6+ {[%clk 0:01:07]}  Kg8 {[%clk 0:01:49]} 27. fxg6 {[%clk 0:01:07]}  fxg6 {[%clk 0:01:50]} 28. Rf1 {[%clk 0:00:55]}  Kh7 {[%clk 0:01:44]} 29. Bg5 {[%clk 0:00:47]}  Bxe4 {[%clk 0:01:40]} 30. Re3 {[%clk 0:00:37]}  d5 {[%clk 0:01:24]} 31. Rxe4 {[%clk 0:00:27]}  dxe4 {[%clk 0:01:23]} 32. Bf4 {[%clk 0:00:26]}  Rbb7 {[%clk 0:01:21]} 33. Bxc7 {[%clk 0:00:13]}  Rxc7 {[%clk 0:01:22]} 34. Re1 {[%clk 0:00:09]}  Nf7 {[%clk 0:01:22]} 35. Rxe4 {[%clk 0:00:09]}  Ng5 {[%clk 0:01:22]} 36. Re3 {[%clk 0:00:08]}  Nxh3 {[%clk 0:01:19]} 37. Rxh3 {[%clk 0:00:08]}  Kg7 {[%clk 0:01:18]} 38. Re3 {[%clk 0:00:08]}  Kf6 {[%clk 0:01:18]} 39. h4 {[%clk 0:00:09]}  e5 {[%clk 0:01:18]} 40. Kc3 {[%clk 0:00:08]}  Kf5 {[%clk 0:01:18]} 41. g3 {[%clk 0:00:07]}  e4 {[%clk 0:01:18]} 42. Kd4 {[%clk 0:00:05]}  Rd7+ {[%clk 0:01:18]} 43. Kc3 {[%clk 0:00:05]}  Ke5 {[%clk 0:01:16]} 44. Re1 {[%clk 0:00:04]}  Rd3+ {[%clk 0:01:16]} 45. Kc2 {[%clk 0:00:03]}  Rxg3 {[%clk 0:01:16]} 46. c5 {[%clk 0:00:03]}  bxc5 {[%clk 0:01:17]} 47. bxc5 {[%clk 0:00:03]}  Ra3 {[%clk 0:01:15]} 48. Kb2 {[%clk 0:00:02]}  Rxa4 {[%clk 0:01:11]} 49. Rc1 {[%clk 0:00:03]}  Rb4+ {[%clk 0:01:07]} 50. Ka3 {[%clk 0:00:02]}  Rb8 {[%clk 0:01:07]} 51. c6 {[%clk 0:00:03]}  Rc8 {[%clk 0:01:07]} 52. Kb4 {[%clk 0:00:03]}  e3 {[%clk 0:01:02]} 53. Kc5 {[%clk 0:00:03]}  a5 {[%clk 0:00:58]} 54. Rc4 {[%clk 0:00:02]}  e2 {[%clk 0:00:55]} 55. Rc1 {[%clk 0:00:02]}  Ke4 {[%clk 0:00:56]} 56. Kd6 {[%clk 0:00:02]}  Kf3 {[%clk 0:00:52]} 57. Kd7 {[%clk 0:00:02]}  Rxc6 {[%clk 0:00:46]} 58. Kxc6 {[%clk 0:00:03]}  Kf2 {[%clk 0:00:47]} 59. Kb5 {[%clk 0:00:03]}  e1=Q {[%clk 0:00:47]} 60. Rxe1 {[%clk 0:00:03]}  Kxe1 {[%clk 0:00:48]} 61. Kxa5 {[%clk 0:00:04]}  Kf2 {[%clk 0:00:49]} 62. Kb4 {[%clk 0:00:05]}  Kg3 {[%clk 0:00:50]} 63. Kc4 {[%clk 0:00:05]}  Kxh4 {[%clk 0:00:51]} 64. Kd3 {[%clk 0:00:05]}  Kg3 {[%clk 0:00:52]} 65. Ke2 {[%clk 0:00:05]}  Kg2 {[%clk 0:00:52]} 0-1

[Event "December 19 Early 2023"]
[Site "https://www.chess.com"]
[Date "2023.12.19"]
[Round "6"]
[White "Dinu, Dumitru-Daniel"]
[Black "Hartikainen, Jarmo"]
[Result "1-0"]
[Board "122"]
[TimeControl "180+1"]
[WhiteFideId "1208403"]
[BlackFideId "503134"]
[WhiteElo "2240"]
[BlackElo "2155"]
[WhiteTeam "ROU"]
[BlackTeam "FIN"]
[WhiteClock "0:00:29"]
[BlackClock "0:00:09"]

1. e4 {[%clk 0:03:00]}  c5 {[%clk 0:02:59]} 2. Nf3 {[%clk 0:03:00]}  Nc6 {[%clk 0:02:59]} 3. Bb5 {[%clk 0:02:58]}  e6 {[%clk 0:02:59]} 4. O-O {[%clk 0:02:54]}  Nge7 {[%clk 0:02:58]} 5. d4 {[%clk 0:02:54]}  cxd4 {[%clk 0:02:57]} 6. Nxd4 {[%clk 0:02:52]}  a6 {[%clk 0:02:58]} 7. Be2 {[%clk 0:02:48]}  Nxd4 {[%clk 0:02:58]} 8. Qxd4 {[%clk 0:02:48]}  Nc6 {[%clk 0:02:58]} 9. Qc3 {[%clk 0:02:48]}  Qf6 {[%clk 0:02:52]} 10. Be3 {[%clk 0:02:37]}  Qxc3 {[%clk 0:02:50]} 11. Nxc3 {[%clk 0:02:37]}  Be7 {[%clk 0:02:50]} 12. Na4 {[%clk 0:02:34]}  b5 {[%clk 0:02:47]} 13. Nb6 {[%clk 0:02:29]}  Rb8 {[%clk 0:02:47]} 14. Nxc8 {[%clk 0:02:29]}  Rxc8 {[%clk 0:02:47]} 15. a4 {[%clk 0:02:30]}  bxa4 {[%clk 0:02:33]} 16. Rxa4 {[%clk 0:02:25]}  a5 {[%clk 0:02:32]} 17. c3 {[%clk 0:02:20]}  O-O {[%clk 0:02:31]} 18. Rd1 {[%clk 0:02:19]}  Bd8 {[%clk 0:02:05]} 19. Rxd7 {[%clk 0:02:09]}  Rb8 {[%clk 0:02:06]} 20. Rd2 {[%clk 0:01:57]}  Be7 {[%clk 0:01:54]} 21. f4 {[%clk 0:01:46]}  g6 {[%clk 0:01:40]} 22. Kf2 {[%clk 0:01:38]}  Rb3 {[%clk 0:01:33]} 23. Bc4 {[%clk 0:01:29]}  Rbb8 {[%clk 0:01:24]} 24. Ke2 {[%clk 0:01:19]}  Rfd8 {[%clk 0:01:22]} 25. Rxd8+ {[%clk 0:01:15]}  Bxd8 {[%clk 0:01:23]} 26. b3 {[%clk 0:01:15]}  h5 {[%clk 0:01:13]} 27. e5 {[%clk 0:01:10]}  Kg7 {[%clk 0:01:05]} 28. Kf3 {[%clk 0:01:07]}  f6 {[%clk 0:01:05]} 29. exf6+ {[%clk 0:01:04]}  Kxf6 {[%clk 0:01:04]} 30. Ke4 {[%clk 0:01:03]}  Bc7 {[%clk 0:00:58]} 31. Bf2 {[%clk 0:00:54]}  g5 {[%clk 0:00:49]} 32. fxg5+ {[%clk 0:00:51]}  Kxg5 {[%clk 0:00:49]} 33. h3 {[%clk 0:00:44]}  e5 {[%clk 0:00:47]} 34. Ra1 {[%clk 0:00:40]}  Rf8 {[%clk 0:00:47]} 35. Be3+ {[%clk 0:00:41]}  Kg6 {[%clk 0:00:46]} 36. Rd1 {[%clk 0:00:38]}  Bd8 {[%clk 0:00:16]} 37. Rd6+ {[%clk 0:00:34]}  Rf6 {[%clk 0:00:16]} 38. Rxf6+ {[%clk 0:00:33]}  Bxf6 {[%clk 0:00:14]} 39. Kd5 {[%clk 0:00:30]}  Ne7+ {[%clk 0:00:13]} 40. Ke6 {[%clk 0:00:30]}  Nf5 {[%clk 0:00:09]} 41. Bd3 {[%clk 0:00:29]} 1-0

[Event "December 19 Early 2023"]
[Site "https://www.chess.com"]
[Date "2023.12.19"]
[Round "6"]
[White "Caruana, Fabiano"]
[Black "Balla, Tamas-Kristof"]
[Result "1-0"]
[Board "123"]
[TimeControl "180+1"]
[WhiteFideId "2020009"]
[BlackFideId "1208497"]
[WhiteElo "2815"]
[BlackElo "2306"]
[WhiteTeam "USA"]
[BlackTeam "ROU"]
[WhiteClock "0:01:47"]
[BlackClock "0:00:12"]

1. c3 {[%clk 0:03:00]}  c5 {[%clk 0:02:56]} 2. e4 {[%clk 0:03:00]}  Nf6 {[%clk 0:02:54]} 3. e5 {[%clk 0:03:00]}  Nd5 {[%clk 0:02:53]} 4. Nf3 {[%clk 0:03:01]}  Nc6 {[%clk 0:02:50]} 5. Bc4 {[%clk 0:03:01]}  Nb6 {[%clk 0:02:48]} 6. Bb3 {[%clk 0:03:01]}  d5 {[%clk 0:02:49]} 7. exd6 {[%clk 0:03:00]}  Qxd6 {[%clk 0:02:42]} 8. O-O {[%clk 0:03:00]}  g6 {[%clk 0:02:40]} 9. a4 {[%clk 0:03:00]}  Bg7 {[%clk 0:02:39]} 10. a5 {[%clk 0:03:00]}  Nd5 {[%clk 0:02:35]} 11. Na3 {[%clk 0:02:58]}  O-O {[%clk 0:02:06]} 12. Nb5 {[%clk 0:02:56]}  Qd8 {[%clk 0:01:55]} 13. Bxd5 {[%clk 0:02:52]}  Qxd5 {[%clk 0:01:50]} 14. Nc7 {[%clk 0:02:52]}  Qd6 {[%clk 0:01:50]} 15. Nxa8 {[%clk 0:02:52]}  Bg4 {[%clk 0:01:51]} 16. h3 {[%clk 0:02:50]}  Bf5 {[%clk 0:01:39]} 17. d4 {[%clk 0:02:43]}  Rxa8 {[%clk 0:01:29]} 18. dxc5 {[%clk 0:02:43]}  Qxc5 {[%clk 0:01:30]} 19. Be3 {[%clk 0:02:43]}  Qb5 {[%clk 0:01:25]} 20. Nd4 {[%clk 0:02:38]}  Nxd4 {[%clk 0:01:21]} 21. Bxd4 {[%clk 0:02:39]}  Rd8 {[%clk 0:01:21]} 22. Qa4 {[%clk 0:02:36]}  Qxb2 {[%clk 0:01:17]} 23. Bxg7 {[%clk 0:02:36]}  Kxg7 {[%clk 0:01:18]} 24. Qb4 {[%clk 0:02:28]}  Qxb4 {[%clk 0:01:10]} 25. cxb4 {[%clk 0:02:29]}  Rd4 {[%clk 0:01:11]} 26. b5 {[%clk 0:02:22]}  Rb4 {[%clk 0:01:10]} 27. a6 {[%clk 0:02:23]}  Rxb5 {[%clk 0:01:09]} 28. Rfc1 {[%clk 0:02:19]}  bxa6 {[%clk 0:01:03]} 29. Rxa6 {[%clk 0:02:20]}  Rb7 {[%clk 0:01:02]} 30. Rca1 {[%clk 0:02:18]}  h5 {[%clk 0:01:01]} 31. Rxa7 {[%clk 0:02:17]}  Rxa7 {[%clk 0:01:01]} 32. Rxa7 {[%clk 0:02:18]}  Kf6 {[%clk 0:01:02]} 33. h4 {[%clk 0:02:15]}  Be6 {[%clk 0:00:55]} 34. f3 {[%clk 0:02:13]}  Bf5 {[%clk 0:00:51]} 35. Kf2 {[%clk 0:02:13]}  e5 {[%clk 0:00:49]} 36. Ke3 {[%clk 0:02:13]}  Be6 {[%clk 0:00:47]} 37. Ra6 {[%clk 0:02:13]}  Ke7 {[%clk 0:00:42]} 38. Ke4 {[%clk 0:02:12]}  Kf6 {[%clk 0:00:42]} 39. Rb6 {[%clk 0:02:11]}  Kg7 {[%clk 0:00:36]} 40. Kxe5 {[%clk 0:02:12]}  Bc4 {[%clk 0:00:37]} 41. Kf4 {[%clk 0:02:07]}  Bf1 {[%clk 0:00:37]} 42. Rb2 {[%clk 0:02:05]}  Bc4 {[%clk 0:00:36]} 43. g3 {[%clk 0:02:00]}  Be6 {[%clk 0:00:36]} 44. Rb7 {[%clk 0:01:59]}  Kf6 {[%clk 0:00:35]} 45. Rc7 {[%clk 0:01:59]}  Kg7 {[%clk 0:00:35]} 46. Kg5 {[%clk 0:01:58]}  Bd5 {[%clk 0:00:34]} 47. Kf4 {[%clk 0:01:54]}  Be6 {[%clk 0:00:34]} 48. Ke5 {[%clk 0:01:55]}  Bb3 {[%clk 0:00:31]} 49. Rc3 {[%clk 0:01:47]}  Be6 {[%clk 0:00:31]} 50. Rc6 {[%clk 0:01:47]}  Bb3 {[%clk 0:00:31]} 51. f4 {[%clk 0:01:46]}  Be6 {[%clk 0:00:31]} 52. Rxe6 {[%clk 0:01:46]}  fxe6 {[%clk 0:00:25]} 53. Kxe6 {[%clk 0:01:47]}  Kh6 {[%clk 0:00:16]} 54. Kf6 {[%clk 0:01:46]}  Kh7 {[%clk 0:00:16]} 55. Kf7 {[%clk 0:01:46]}  Kh6 {[%clk 0:00:12]} 56. Kg8 {[%clk 0:01:47]} 1-0

[Event "December 19 Early 2023"]
[Site "https://www.chess.com"]
[Date "2023.12.19"]
[Round "6"]
[White "Masague Artero, Guerau"]
[Black "Ohler, Julius"]
[Result "0-1"]
[Board "125"]
[TimeControl "180+1"]
[WhiteFideId "32098952"]
[BlackFideId "16238982"]
[WhiteElo "2253"]
[BlackElo "2200"]
[WhiteTeam "ESP"]
[BlackTeam "GER"]
[WhiteClock "0:00:35"]
[BlackClock "0:01:24"]

1. Nf3 {[%clk 0:03:00]}  d5 {[%clk 0:02:59]} 2. e3 {[%clk 0:03:01]}  Nf6 {[%clk 0:02:59]} 3. d4 {[%clk 0:03:02]}  Bg4 {[%clk 0:02:59]} 4. h3 {[%clk 0:03:02]}  Bxf3 {[%clk 0:02:58]} 5. Qxf3 {[%clk 0:03:02]}  c6 {[%clk 0:02:59]} 6. c4 {[%clk 0:03:01]}  e6 {[%clk 0:02:59]} 7. Nc3 {[%clk 0:03:00]}  Nbd7 {[%clk 0:02:59]} 8. Bd2 {[%clk 0:03:01]}  Bd6 {[%clk 0:02:58]} 9. Bd3 {[%clk 0:03:00]}  O-O {[%clk 0:02:58]} 10. O-O {[%clk 0:03:00]}  Qe7 {[%clk 0:02:56]} 11. Rfe1 {[%clk 0:02:59]}  dxc4 {[%clk 0:02:53]} 12. Bxc4 {[%clk 0:03:00]}  e5 {[%clk 0:02:54]} 13. Rad1 {[%clk 0:02:58]}  Rad8 {[%clk 0:02:52]} 14. d5 {[%clk 0:02:55]}  Nb6 {[%clk 0:02:49]} 15. b3 {[%clk 0:02:48]}  e4 {[%clk 0:02:43]} 16. Qf5 {[%clk 0:02:40]}  cxd5 {[%clk 0:02:43]} 17. Bf1 {[%clk 0:02:35]}  Qe6 {[%clk 0:02:36]} 18. Qxe6 {[%clk 0:02:30]}  fxe6 {[%clk 0:02:37]} 19. Nb5 {[%clk 0:02:25]}  Bb8 {[%clk 0:02:37]} 20. Bb4 {[%clk 0:02:22]}  Rf7 {[%clk 0:02:38]} 21. Rc1 {[%clk 0:02:20]}  h6 {[%clk 0:02:36]} 22. Rc2 {[%clk 0:02:13]}  Ne8 {[%clk 0:02:29]} 23. Rec1 {[%clk 0:02:12]}  Nd6 {[%clk 0:02:25]} 24. Bxd6 {[%clk 0:01:55]}  Bxd6 {[%clk 0:02:23]} 25. Nxa7 {[%clk 0:01:56]}  Rdf8 {[%clk 0:02:14]} 26. Bb5 {[%clk 0:01:40]}  Ba3 {[%clk 0:01:57]} 27. Nc8 {[%clk 0:01:13]}  Nxc8 {[%clk 0:01:49]} 28. Rxc8 {[%clk 0:01:08]}  Bxc1 {[%clk 0:01:49]} 29. Rxc1 {[%clk 0:01:08]}  Rxf2 {[%clk 0:01:47]} 30. Bd7 {[%clk 0:01:08]}  R2f6 {[%clk 0:01:45]} 31. Rc7 {[%clk 0:01:02]}  Rb8 {[%clk 0:01:42]} 32. a4 {[%clk 0:01:01]}  Kf8 {[%clk 0:01:37]} 33. a5 {[%clk 0:01:00]}  Rf7 {[%clk 0:01:35]} 34. b4 {[%clk 0:00:53]}  Rd8 {[%clk 0:01:26]} 35. Rxb7 {[%clk 0:00:37]}  Rfxd7 {[%clk 0:01:25]} 36. Rxd7 {[%clk 0:00:38]}  Rxd7 {[%clk 0:01:26]} 37. b5 {[%clk 0:00:39]}  Ra7 {[%clk 0:01:24]} 38. a6 {[%clk 0:00:35]}  Ke7 {[%clk 0:01:24]} 0-1

[Event "December 19 Early 2023"]
[Site "https://www.chess.com"]
[Date "2023.12.19"]
[Round "6"]
[White "Sadykov, Ramil"]
[Black "Ovezdurdyyeva, Jemal"]
[Result "1-0"]
[Board "126"]
[TimeControl "180+1"]
[WhiteFideId "24113590"]
[BlackFideId "14001888"]
[WhiteElo "2245"]
[BlackElo "2086"]
[WhiteTeam "FID"]
[BlackTeam "TKM"]
[WhiteClock "0:00:36"]
[BlackClock "0:01:33"]

1. d4 {[%clk 0:01:58]}  Nf6 {[%clk 0:02:54]} 2. Nc3 {[%clk 0:01:56]}  e6 {[%clk 0:02:50]} 3. Bf4 {[%clk 0:01:53]}  b6 {[%clk 0:02:44]} 4. e4 {[%clk 0:01:51]}  Bb7 {[%clk 0:02:38]} 5. Bd3 {[%clk 0:01:50]}  Be7 {[%clk 0:02:38]} 6. Nf3 {[%clk 0:01:42]}  d5 {[%clk 0:02:37]} 7. e5 {[%clk 0:01:41]}  Nfd7 {[%clk 0:02:37]} 8. Ne2 {[%clk 0:01:36]}  c5 {[%clk 0:02:37]} 9. c3 {[%clk 0:01:36]}  Nc6 {[%clk 0:02:34]} 10. a3 {[%clk 0:01:30]}  h6 {[%clk 0:02:33]} 11. h4 {[%clk 0:01:29]}  Qc7 {[%clk 0:02:29]} 12. h5 {[%clk 0:01:27]}  O-O-O {[%clk 0:02:20]} 13. b4 {[%clk 0:01:24]}  c4 {[%clk 0:02:19]} 14. Bc2 {[%clk 0:01:23]}  Rhg8 {[%clk 0:02:08]} 15. a4 {[%clk 0:01:20]}  Ndb8 {[%clk 0:01:59]} 16. a5 {[%clk 0:01:14]}  b5 {[%clk 0:01:59]} 17. Qd2 {[%clk 0:01:11]}  a6 {[%clk 0:01:58]} 18. g4 {[%clk 0:01:04]}  Qd7 {[%clk 0:01:55]} 19. g5 {[%clk 0:00:56]}  hxg5 {[%clk 0:01:52]} 20. Bxg5 {[%clk 0:00:56]}  f6 {[%clk 0:01:39]} 21. Bf4 {[%clk 0:00:41]}  fxe5 {[%clk 0:01:39]} 22. Bxe5 {[%clk 0:00:36]}  Nxe5 {[%clk 0:01:36]} 23. Nxe5 {[%clk 0:00:36]}  Nc6 {[%clk 0:01:33]} 24. Nxd7 {[%clk 0:00:36]} 1-0

[Event "December 19 Early 2023"]
[Site "https://www.chess.com"]
[Date "2023.12.19"]
[Round "6"]
[White "Do Nascimento,Christian Almeida"]
[Black "Stillger, Bernhard"]
[Result "0-1"]
[Board "127"]
[TimeControl "180+1"]
[WhiteFideId "2143801"]
[BlackFideId "4610768"]
[WhiteElo "2118"]
[BlackElo "2252"]
[WhiteTeam "BRA"]
[BlackTeam "GER"]
[WhiteClock "0:00:11"]
[BlackClock "0:00:17"]

1. e4 {[%clk 0:02:56]}  c6 {[%clk 0:02:59]} 2. d4 {[%clk 0:02:53]}  d5 {[%clk 0:03:00]} 3. exd5 {[%clk 0:02:54]}  cxd5 {[%clk 0:03:00]} 4. c4 {[%clk 0:02:55]}  Nf6 {[%clk 0:02:59]} 5. Nc3 {[%clk 0:02:53]}  g6 {[%clk 0:02:59]} 6. Nf3 {[%clk 0:02:53]}  Bg7 {[%clk 0:02:58]} 7. h3 {[%clk 0:02:51]}  O-O {[%clk 0:02:58]} 8. Bf4 {[%clk 0:02:43]}  Nc6 {[%clk 0:02:56]} 9. c5 {[%clk 0:02:40]}  Ne4 {[%clk 0:02:55]} 10. Be2 {[%clk 0:02:34]}  Qa5 {[%clk 0:02:46]} 11. O-O {[%clk 0:02:21]}  Nxc3 {[%clk 0:02:39]} 12. bxc3 {[%clk 0:02:22]}  Qxc3 {[%clk 0:02:39]} 13. Rc1 {[%clk 0:02:21]}  Qa5 {[%clk 0:02:35]} 14. Rb1 {[%clk 0:02:19]}  Qxa2 {[%clk 0:02:21]} 15. Re1 {[%clk 0:02:15]}  Nxd4 {[%clk 0:02:07]} 16. Nxd4 {[%clk 0:02:14]}  e5 {[%clk 0:02:07]} 17. Be3 {[%clk 0:01:38]}  exd4 {[%clk 0:01:59]} 18. Bxd4 {[%clk 0:01:37]}  Qa5 {[%clk 0:01:26]} 19. Bxg7 {[%clk 0:01:34]}  Kxg7 {[%clk 0:01:27]} 20. Qxd5 {[%clk 0:01:28]}  Rd8 {[%clk 0:01:19]} 21. Qe5+ {[%clk 0:01:28]}  Kg8 {[%clk 0:01:19]} 22. Bc4 {[%clk 0:01:24]}  Rf8 {[%clk 0:00:53]} 23. h4 {[%clk 0:00:58]}  Qd8 {[%clk 0:00:45]} 24. h5 {[%clk 0:00:55]}  Qh4 {[%clk 0:00:44]} 25. hxg6 {[%clk 0:00:50]}  hxg6 {[%clk 0:00:37]} 26. Re4 {[%clk 0:00:40]}  Qh5 {[%clk 0:00:36]} 27. Qf6 {[%clk 0:00:31]}  Bf5 {[%clk 0:00:30]} 28. Re7 {[%clk 0:00:27]}  Qh7 {[%clk 0:00:23]} 29. Rbxb7 {[%clk 0:00:24]}  Qg7 {[%clk 0:00:20]} 30. Bxf7+ {[%clk 0:00:22]}  Rxf7 {[%clk 0:00:20]} 31. Qxg7+ {[%clk 0:00:16]}  Rxg7 {[%clk 0:00:17]} 32. Rf7 {[%clk 0:00:11]}  Rxf7 {[%clk 0:00:17]} 0-1

[Event "December 19 Early 2023"]
[Site "https://www.chess.com"]
[Date "2023.12.19"]
[Round "6"]
[White "Matveeva, Olga"]
[Black "Kvaloy, Aksel Bu"]
[Result "0-1"]
[Board "128"]
[TimeControl "180+1"]
[WhiteFideId "24107018"]
[BlackFideId "1528815"]
[WhiteElo "1883"]
[BlackElo "2265"]
[WhiteTeam "RUS"]
[BlackTeam "NOR"]
[WhiteClock "0:00:37"]
[BlackClock "0:00:12"]

1. d4 {[%clk 0:03:00]}  Nf6 {[%clk 0:02:56]} 2. c4 {[%clk 0:03:01]}  e5 {[%clk 0:02:56]} 3. dxe5 {[%clk 0:03:00]}  Ng4 {[%clk 0:02:56]} 4. Nf3 {[%clk 0:03:00]}  Bc5 {[%clk 0:02:50]} 5. e3 {[%clk 0:03:01]}  Nc6 {[%clk 0:02:50]} 6. Nc3 {[%clk 0:02:59]}  Ngxe5 {[%clk 0:02:49]} 7. Nxe5 {[%clk 0:02:59]}  Nxe5 {[%clk 0:02:50]} 8. Be2 {[%clk 0:02:59]}  Bb4 {[%clk 0:02:42]} 9. Bd2 {[%clk 0:02:54]}  O-O {[%clk 0:02:38]} 10. O-O {[%clk 0:02:53]}  d6 {[%clk 0:02:38]} 11. Nd5 {[%clk 0:02:52]}  Bxd2 {[%clk 0:02:37]} 12. Qxd2 {[%clk 0:02:53]}  Be6 {[%clk 0:02:37]} 13. Rfd1 {[%clk 0:02:50]}  Bxd5 {[%clk 0:02:27]} 14. Qxd5 {[%clk 0:02:44]}  Nc6 {[%clk 0:02:26]} 15. c5 {[%clk 0:02:40]}  Qf6 {[%clk 0:02:25]} 16. cxd6 {[%clk 0:02:36]}  cxd6 {[%clk 0:02:26]} 17. b3 {[%clk 0:02:28]}  Rad8 {[%clk 0:02:23]} 18. Rac1 {[%clk 0:02:25]}  Rfe8 {[%clk 0:02:23]} 19. Bb5 {[%clk 0:02:23]}  Re5 {[%clk 0:02:20]} 20. Qd3 {[%clk 0:02:12]}  Rc5 {[%clk 0:01:50]} 21. Bxc6 {[%clk 0:02:05]}  Rxc6 {[%clk 0:01:49]} 22. Rxc6 {[%clk 0:01:58]}  bxc6 {[%clk 0:01:50]} 23. Qa6 {[%clk 0:01:57]}  d5 {[%clk 0:01:41]} 24. Qxa7 {[%clk 0:01:54]}  h5 {[%clk 0:01:42]} 25. Qd4 {[%clk 0:01:49]}  Qxd4 {[%clk 0:01:33]} 26. Rxd4 {[%clk 0:01:50]}  Ra8 {[%clk 0:01:32]} 27. Ra4 {[%clk 0:01:44]}  Rc8 {[%clk 0:01:32]} 28. Kf1 {[%clk 0:01:41]}  Kf8 {[%clk 0:01:32]} 29. Ke2 {[%clk 0:01:42]}  Ke7 {[%clk 0:01:32]} 30. Kd3 {[%clk 0:01:42]}  Kd6 {[%clk 0:01:28]} 31. Ra7 {[%clk 0:01:42]}  Ke6 {[%clk 0:01:28]} 32. b4 {[%clk 0:01:33]}  h4 {[%clk 0:01:22]} 33. Kd4 {[%clk 0:01:31]}  g5 {[%clk 0:01:15]} 34. Kc5 {[%clk 0:01:27]}  f5 {[%clk 0:01:14]} 35. Rg7 {[%clk 0:01:23]}  Kf6 {[%clk 0:01:12]} 36. Rh7 {[%clk 0:01:17]}  Ra8 {[%clk 0:01:06]} 37. Rh6+ {[%clk 0:01:14]}  Ke5 {[%clk 0:01:05]} 38. Rxc6 {[%clk 0:01:06]}  Rxa2 {[%clk 0:01:04]} 39. Rg6 {[%clk 0:01:06]}  g4 {[%clk 0:00:54]} 40. f4+ {[%clk 0:00:55]}  gxf3 {[%clk 0:00:38]} 41. gxf3 {[%clk 0:00:56]}  Rc2+ {[%clk 0:00:38]} 42. Kb6 {[%clk 0:00:54]}  Rxh2 {[%clk 0:00:39]} 43. b5 {[%clk 0:00:53]}  Rf2 {[%clk 0:00:36]} 44. f4+ {[%clk 0:00:52]}  Ke4 {[%clk 0:00:36]} 45. Re6+ {[%clk 0:00:51]}  Kf3 {[%clk 0:00:36]} 46. Kc7 {[%clk 0:00:51]}  h3 {[%clk 0:00:33]} 47. b6 {[%clk 0:00:51]}  Rc2+ {[%clk 0:00:28]} 48. Kd7 {[%clk 0:00:49]}  h2 {[%clk 0:00:21]} 49. Rh6 {[%clk 0:00:48]}  Kg2 {[%clk 0:00:09]} 50. b7 {[%clk 0:00:46]}  Rb2 {[%clk 0:00:08]} 51. Kc7 {[%clk 0:00:36]}  h1=Q {[%clk 0:00:08]} 52. Rxh1 {[%clk 0:00:35]}  Kxh1 {[%clk 0:00:09]} 53. b8=Q {[%clk 0:00:35]}  Rxb8 {[%clk 0:00:10]} 54. Kxb8 {[%clk 0:00:35]}  Kg2 {[%clk 0:00:11]} 55. Kc7 {[%clk 0:00:36]}  Kf3 {[%clk 0:00:11]} 56. Kd6 {[%clk 0:00:36]}  Kxe3 {[%clk 0:00:11]} 57. Kxd5 {[%clk 0:00:37]}  Kxf4 {[%clk 0:00:11]} 58. Kd4 {[%clk 0:00:38]}  Kg3 {[%clk 0:00:11]} 59. Ke3 {[%clk 0:00:38]}  f4+ {[%clk 0:00:12]} 60. Ke2 {[%clk 0:00:37]}  Kg2 {[%clk 0:00:12]} 0-1

[Event "December 19 Early 2023"]
[Site "https://www.chess.com"]
[Date "2023.12.19"]
[Round "6"]
[White "Novikov, Evgenij"]
[Black "Wael Sabry, Mina"]
[Result "1-0"]
[Board "130"]
[TimeControl "180+1"]
[WhiteFideId "4125380"]
[BlackFideId "10670173"]
[WhiteElo "2242"]
[BlackElo "1861"]
[WhiteTeam "RUS"]
[BlackTeam "EGY"]
[WhiteClock "0:01:37"]
[BlackClock "0:02:06"]

1. e4 {[%clk 0:03:00]}  c5 {[%clk 0:02:57]} 2. d4 {[%clk 0:02:59]}  cxd4 {[%clk 0:02:57]} 3. c3 {[%clk 0:02:59]}  Nf6 {[%clk 0:02:57]} 4. e5 {[%clk 0:02:57]}  Nd5 {[%clk 0:02:57]} 5. Bc4 {[%clk 0:02:57]}  Nb6 {[%clk 0:02:57]} 6. Bb3 {[%clk 0:02:57]}  d6 {[%clk 0:02:55]} 7. exd6 {[%clk 0:02:57]}  Qxd6 {[%clk 0:02:54]} 8. Nf3 {[%clk 0:02:53]}  d3 {[%clk 0:02:45]} 9. O-O {[%clk 0:02:50]}  Nc6 {[%clk 0:02:45]} 10. Na3 {[%clk 0:02:47]}  Bg4 {[%clk 0:02:44]} 11. Bxf7+ {[%clk 0:02:42]}  Kxf7 {[%clk 0:02:31]} 12. Ng5+ {[%clk 0:02:41]}  Kg6 {[%clk 0:02:31]} 13. Qxg4 {[%clk 0:02:42]}  h5 {[%clk 0:02:27]} 14. Qe4+ {[%clk 0:02:30]}  Kf6 {[%clk 0:02:13]} 15. Qf3+ {[%clk 0:01:49]}  Kg6 {[%clk 0:02:10]} 16. Qf7+ {[%clk 0:01:48]}  Kh6 {[%clk 0:02:06]} 17. Ne4+ {[%clk 0:01:37]} 1-0